bitfinex/quotes_ETHUSD_20251107
["timestamp","ask_amount","ask_price","bid_price","bid_amount"]
[1762514795592,1.259712,3239.7,3238.2,1.23]
[1762514795792,4.79550832,3239.6,3238.2,1.23]
[1762514796033,3.08714596,3239.3,3238.2,1.23]
[1762514796240,3.1254966,3239.5,3238.2,1.23]
[1762514796241,1.259712,3238.8,3238.2,1.23]
[1762514796392,1.259712,3239.1,3238.2,1.23]
[1762514796595,3.08744492,3239.0,3238.2,1.23]
[1762514796817,1.259712,3238.8,3238.2,1.23]
[1762514797201,4.54660307,3238.9,3238.2,1.23]
[1762514797413,0.1994,3238.9,3238.2,1.23]
[1762514797743,0.44898642,3239.0,3238.2,2.46]
[1762514798094,1.259712,3239.4,3238.2,2.46]
[1762514798408,1.259712,3239.3,3238.2,2.46]
[1762514798725,1.259712,3239.2,3238.2,2.46]
[1762514798894,0.92846343,3239.6,3238.2,2.46]
[1762514798895,3.08676729,3239.7,3238.2,2.46]
[1762514799227,0.44898642,3239.7,3238.2,2.46]
[1762514799426,3.08724624,3239.2,3238.2,3.69]
[1762514799643,1.259712,3239.3,3238.2,3.69]
[1762514799842,0.4952,3239.6,3238.2,3.69]
[1762514799993,3.58201524,3239.6,3238.2,3.43904]
[1762514800304,0.0385862,3239.5,3238.2,3.43904]
[1762514800532,0.94418642,3239.5,3238.2,3.43904]
[1762514800716,1.259712,3239.0,3238.2,3.43904]
[1762514800917,0.1979,3239.9,3238.2,4.66904]
[1762514801147,0.53378262,3239.8,3238.2,4.66904]
[1762514801361,0.42065309,3239.7,3238.2,4.66904]
[1762514801537,1.259712,3239.7,3238.2,4.66904]
[1762514801832,0.002,3240.1,3238.2,4.66904]
[1762514802034,1.259712,3240.0,3238.2,4.66904]
[1762514802253,3.08833099,3240.1,3238.2,4.66904]
[1762514802454,0.002,3240.1,3238.2,4.66904]
[1762514802640,1.259712,3240.0,3238.2,5.89904]
[1762514803017,1.259712,3239.6,3238.2,5.89904]
[1762514803221,1.259712,3239.8,3238.2,5.89904]
[1762514803452,1.457612,3239.9,3238.2,5.89904]
[1762514803653,0.1979,3239.9,3238.2,5.89904]
[1762514803853,1.754912,3239.8,3238.2,5.89904]
[1762514804059,1.2950899,3239.8,3238.2,5.89904]
[1762514804219,3.08689612,3239.5,3238.2,5.89904]
[1762514804430,4.34723951,3238.9,3238.2,7.12904]
[1762514804628,0.1801,3238.9,3238.2,7.12904]
[1762514805063,0.6654,3238.9,3238.2,7.12904]
[1762514805258,3.75290813,3238.9,3238.2,7.12904]
[1762514805466,0.90595309,3238.8,3238.2,7.12904]
[1762514805649,3.08804002,3238.3,3238.2,7.12904]
[1762514805965,3.08804002,3238.3,3238.2,8.35904]
[1762514806255,4.37322992,3238.3,3238.2,7.85904]
[1762514806435,5.30207281,3238.3,3238.2,7.85904]
[1762514806760,6.14113172,3238.3,3238.2,7.85904]
[1762514807053,6.14113172,3238.3,3238.2,9.08904]
[1762514807376,2.12424881,3238.3,3238.2,9.08904]
[1762514807541,5.63294192,3238.3,3238.2,9.08904]
[1762514807736,5.21228883,3238.3,3238.2,9.08904]
[1762514808409,5.63294192,3238.3,3238.2,9.08904]
[1762514808713,5.63294192,3238.3,3238.2,10.16264]
[1762514808866,5.63294192,3238.3,3238.0,1.23]
[1762514808867,3.08823075,3238.1,3238.0,1.23]
[1762514809072,4.34794275,3238.1,3238.0,1.23]
[1762514809287,4.34794275,3238.1,3237.8,6.69723201]
[1762514809288,3.08880308,3237.5,3236.1,0.1869]
[1762514809472,4.34851508,3237.5,3236.1,0.1869]
[1762514809782,4.83381508,3237.5,3236.1,0.1869]
[1762514810322,1.745012,3237.5,3236.2,0.329]
[1762514810519,1.259712,3237.5,3236.2,0.329]
[1762514810666,1.259712,3237.5,3236.5,0.329]
[1762514810870,0.4853,3238.5,3237.0,0.329]
[1762514811107,3.08840889,3238.0,3236.5,0.329]
[1762514811309,0.90595309,3238.3,3237.4,1.231]
[1762514811471,0.03860169,3238.2,3237.4,1.231]
[1762514811822,0.42065309,3238.6,3237.4,1.231]
[1762514812108,0.21869334,3238.9,3237.5,0.4711]
[1762514812109,0.1801,3238.9,3237.5,0.4711]
[1762514812419,0.1801,3238.9,3238.1,0.001]
[1762514812714,3.61146738,3238.8,3238.1,0.001]
[1762514812918,4.34756292,3238.5,3238.1,0.001]
[1762514813098,4.34784738,3238.2,3238.1,0.001]
[1762514813274,1.259712,3238.2,3238.1,0.001]
[1762514813476,4.34784738,3238.2,3238.1,0.001]
[1762514813672,4.83314738,3238.2,3238.1,0.001]
[1762514814020,4.83314738,3238.2,3238.1,1.231]
[1762514814021,5.25380047,3238.2,3238.1,1.231]
[1762514814726,5.30380047,3238.2,3238.1,0.30219018]
[1762514815016,5.30380047,3238.2,3237.8,0.001]
[1762514815017,4.3481335,3237.9,3237.8,0.001]
[1762514815316,4.3481335,3237.9,3237.4,2.46]
[1762514815317,4.34851508,3237.5,3237.4,2.46]
[1762514815687,5.25446817,3237.5,3237.4,2.46]
[1762514816439,5.25446817,3237.5,3234.9,0.09275882]
[1762514816440,1.259712,3236.6,3234.9,0.09275882]
[1762514816747,0.4853,3237.5,3236.1,1.4169]
[1762514817095,0.1869,3237.1,3236.2,0.329]
[1762514817403,1.259712,3236.9,3236.1,1.4169]
[1762514817715,1.259712,3237.1,3236.1,1.7459]
[1762514817908,1.259712,3237.3,3236.2,0.329]
[1762514818109,0.92922553,3237.6,3236.2,0.329]
[1762514818416,1.259712,3237.1,3236.1,2.6469]
[1762514818591,1.259712,3237.3,3236.1,2.6469]
[1762514818782,4.3487356,3237.3,3236.2,0.329]
[1762514818984,1.259712,3237.3,3236.2,0.329]
[1762514819388,3.08804002,3238.3,3236.3,0.02770657]
[1762514819625,0.4853,3238.2,3236.4,0.329]
[1762514819786,0.92892917,3238.0,3236.4,0.329]
[1762514819991,1.259712,3237.6,3236.4,0.329]
[1762514820298,0.03861003,3237.5,3236.2,1.23]
[1762514820496,0.05,3237.4,3236.2,1.23]
[1762514820707,1.259712,3236.8,3236.2,1.23]
[1762514820999,1.259712,3237.1,3236.2,2.46]
[1762514821203,3.08868087,3237.7,3236.3,0.35671345]
[1762514821399,0.4853,3237.8,3236.3,0.329]
[1762514821400,1.259712,3237.4,3236.3,0.329]
[1762514821832,3.57400095,3237.7,3236.3,0.329]
[1762514821833,1.259712,3237.6,3236.4,0.02770418]
[1762514822028,3.57392352,3237.7,3236.3,0.329]
[1762514822029,1.259712,3237.7,3236.3,0.329]
[1762514822230,0.92892917,3238.0,3236.3,0.329]
[1762514822231,1.259712,3238.1,3236.3,1.559]
[1762514822532,0.4853,3238.3,3236.3,1.559]
[1762514822533,0.92884576,3238.3,3236.3,1.559]
[1762514822838,0.42065309,3238.8,3236.3,1.559]
[1762514822839,0.6654,3238.9,3236.4,0.329]
[1762514823150,0.4853,3238.8,3236.4,0.329]
[1762514823351,1.745012,3238.8,3236.4,0.329]
[1762514823564,0.05,3238.5,3236.3,1.23]
[1762514823710,1.259712,3238.3,3236.5,0.329]
[1762514824056,4.34808083,3238.0,3236.5,0.329]
[1762514824213,3.08832638,3238.0,3236.5,0.329]
[1762514824409,0.4853,3238.4,3236.5,0.329]
[1762514824624,0.92886302,3238.7,3236.5,0.329]
[1762514825011,0.03859692,3238.6,3236.5,0.329]
[1762514825327,0.4853,3238.6,3236.5,1.559]
[1762514825529,0.1801,3238.9,3236.6,3.11733858]
[1762514825740,0.1801,3238.9,3236.6,0.329]
[1762514825741,0.4853,3238.8,3236.6,0.329]
[1762514825951,0.5353,3238.8,3236.7,0.329]
[1762514826158,4.34841931,3237.7,3236.7,0.329]
[1762514826318,0.0408,3236.7,3236.5,1.23]
[1762514826659,1.259712,3237.5,3236.6,1.23]
[1762514826911,0.4853,3237.9,3236.6,1.559]
[1762514827026,1.259712,3237.4,3236.6,1.559]
[1762514827419,4.34774798,3237.5,3236.6,1.559]
[1762514827622,0.4853,3237.7,3236.6,1.559]
[1762514827928,0.42065309,3238.1,3236.7,0.35669702]
[1762514827929,0.4853,3238.1,3236.7,0.35669702]
[1762514828135,0.4853,3238.1,3236.6,1.559]
[1762514828136,0.4853,3238.0,3236.6,2.789]
[1762514828435,0.0408,3236.7,3236.6,2.789]
[1762514829121,0.0408,3236.7,3236.6,2.46]
[1762514829369,0.0408,3236.7,3236.6,2.789]
[1762514829833,0.0408,3236.7,3236.6,3.69]
[1762514830355,4.39007853,3236.7,3236.6,3.69]
[1762514830957,1.300512,3236.7,3236.6,3.69]
[1762514831121,4.85397853,3236.7,3236.6,3.69]
[1762514831478,5.33927853,3236.7,3236.6,4.92]
[1762514831763,3.08975745,3236.5,3236.3,1.23]
[1762514831974,3.08975745,3236.5,3236.2,1e-08]
[1762514831975,4.39966039,3236.3,3236.2,1e-08]
[1762514832125,4.39966039,3236.3,3236.1,3.1e-07]
[1762514832126,5.85238666,3236.2,3236.1,3.1e-07]
[1762514832468,2.63674087,3232.8,3231.6,3.09438751]
[1762514832671,2.61994087,3232.3,3231.0,0.00437802]
[1762514832968,0.03864107,3234.9,3231.9,0.1869]
[1762514833122,0.03864107,3234.9,3232.2,3.09386795]
[1762514833123,1.439812,3234.8,3232.2,3.09386795]
[1762514833321,0.1801,3235.0,3232.3,0.02779066]
[1762514833522,0.1801,3235.7,3234.9,0.1793]
[1762514833868,1.259712,3235.5,3232.1,3.09396367]
[1762514834068,1.259712,3235.5,3231.9,0.1869]
[1762514834069,0.6654,3236.0,3232.7,3.09338942]
[1762514834276,0.6775,3235.9,3232.6,1.23]
[1762514834490,1.259712,3235.7,3232.7,0.3662]
[1762514834768,3.09072019,3235.5,3232.7,0.3662]
[1762514834966,0.478,3235.8,3233.2,3.09290618]
[1762514835150,0.478,3235.8,3232.7,0.3662]
[1762514835151,1.259712,3235.5,3232.7,0.3662]
[1762514835352,1.259712,3235.5,3232.6,1.23]
[1762514835353,1.259712,3235.3,3232.8,0.3662]
[1762514835554,1.259712,3234.9,3232.8,0.3662]
[1762514835871,0.478,3235.4,3232.8,0.3662]
[1762514835872,0.03864226,3234.8,3232.8,0.3662]
[1762514836165,3.09066791,3235.6,3232.8,0.3662]
[1762514836166,3.09167324,3234.5,3232.9,0.02778091]
[1762514836462,0.1995,3234.9,3232.6,1.23]
[1762514836463,3.29085945,3234.9,3233.0,0.3662]
[1762514836631,1.459212,3234.9,3233.0,0.3662]
[1762514836830,1.937212,3234.9,3233.1,0.1793]
[1762514837035,0.51664226,3234.8,3233.1,0.1793]
[1762514837269,1.259712,3234.6,3233.1,0.1793]
[1762514837468,0.478,3234.8,3233.1,0.1793]
[1762514837767,0.478,3234.7,3233.1,0.1793]
[1762514837949,1.259712,3234.2,3233.1,0.1793]
[1762514838143,1.259712,3233.9,3233.1,0.1793]
[1762514838444,3.0924488,3233.7,3232.9,1.23]
[1762514838647,1.259712,3233.5,3232.9,1.23]
[1762514838860,3.2918585,3233.8,3232.9,1.23]
[1762514839060,0.1995,3233.8,3232.9,1.23]
[1762514839433,1.259712,3233.6,3232.9,1.23]
[1762514839631,3.76990127,3233.8,3232.9,1.23]
[1762514839836,0.6775,3233.8,3232.9,1.23]
[1762514840282,0.6775,3233.8,3233.1,1.23]
[1762514840283,1.259712,3233.7,3233.1,1.23]
[1762514840584,1.259712,3233.6,3233.1,1.23]
[1762514840769,0.478,3234.4,3233.2,0.20708522]
[1762514840934,0.478,3234.8,3233.2,0.57327833]
[1762514841134,0.478,3234.8,3233.2,0.1793]
[1762514841385,0.478,3234.8,3233.3,0.3662]
[1762514842070,0.478,3235.3,3233.3,0.3662]
[1762514842233,0.478,3235.3,3233.2,0.1793]
[1762514842234,0.03863748,3235.2,3233.2,0.1793]
[1762514842437,0.478,3235.3,3233.4,0.3662]
[1762514842671,3.09083725,3235.4,3233.4,0.3662]
[1762514842832,3.09061787,3235.6,3233.4,0.3662]
[1762514842833,3.09062263,3235.6,3233.4,3.4589008]
[1762514843041,0.478,3235.8,3233.4,3.45886006]
[1762514843262,3.09065155,3235.6,3233.5,0.3662]
[1762514843481,0.478,3235.8,3233.5,0.3662]
[1762514843665,0.1995,3235.9,3233.5,0.3662]
[1762514843666,0.1995,3235.9,3233.6,0.02776187]
[1762514844037,0.1995,3235.9,3233.7,0.3662]
[1762514844454,0.478,3236.2,3234.1,3.09203855]
[1762514844676,0.478,3236.7,3233.7,0.3662]
[1762514844977,0.1995,3237.1,3236.1,0.0934]
[1762514845155,0.1995,3237.4,3236.1,0.4596]
[1762514845353,0.03861242,3237.3,3236.2,0.3662]
[1762514845965,0.478,3237.2,3236.1,0.0934]
[1762514846185,3.08958899,3236.7,3235.0,0.0934]
[1762514846488,0.478,3237.2,3235.1,0.3662]
[1762514846657,0.1995,3236.6,3235.1,0.3662]
[1762514846844,0.1995,3237.4,3235.1,0.3662]
[1762514847352,0.1995,3237.4,3235.2,3.09092942]
[1762514847551,0.1995,3237.4,3235.1,0.3662]
[1762514847880,0.1995,3237.4,3236.1,1.23]
[1762514848282,0.002,3237.7,3237.3,0.1364]
[1762514848778,0.002,3237.7,3237.4,0.3662]
[1762514850384,0.002,3238.4,3237.4,0.3662]
[1762514850688,0.002,3238.4,3237.4,3.48277737]
[1762514850886,0.002,3238.4,3237.4,0.3662]
[1762514851178,0.002,3238.4,3237.5,0.3662]
[1762514851479,0.002,3238.4,3237.6,0.02767938]
[1762514851646,0.002,3238.4,3237.5,0.3662]
[1762514851647,0.002,3238.4,3237.7,3.08860623]
[1762514851848,0.002,3238.4,3238.3,0.0934]
[1762514852263,0.002,3238.4,3238.3,0.4596]
[1762514853094,0.6775,3240.0,3238.3,0.4596]
[1762514853292,0.002,3240.1,3238.4,0.3662]
[1762514853503,0.0368,3238.7,3238.6,3.08775396]
[1762514853720,0.002,3240.1,3240.0,0.1364]
[1762514853878,0.002,3240.1,3238.7,0.3662]
[1762514854219,0.48,3240.1,3238.5,0.3662]
[1762514854679,0.48,3240.1,3238.3,0.0934]
[1762514854889,0.48,3240.1,3238.4,0.39385112]
[1762514855067,0.002,3240.1,3238.4,3.48171922]
[1762514855268,0.002,3240.1,3238.4,0.39385804]
[1762514855501,0.002,3240.1,3240.0,0.1364]
[1762514855869,0.002,3240.1,3240.0,0.5026]
[1762514856106,0.002,3240.1,3240.0,0.1364]
[1762514856268,0.002,3240.1,3240.0,0.5026]
[1762514856465,0.002,3240.1,3240.0,0.1364]
[1762514857110,0.002,3240.1,3240.0,3.22281975]
[1762514857411,0.002,3240.4,3240.3,3.08613399]
[1762514857613,0.002,3241.3,3240.3,0.02761733]
[1762514857776,0.002,3241.3,3241.2,0.1324]
[1762514858422,0.002,3241.3,3241.2,0.4946]
[1762514858907,0.00017901,3241.7,3241.3,0.3622]
[1762514859113,0.00017901,3241.7,3241.2,0.1324]
[1762514859701,0.00017901,3241.7,3240.9,0.1324]
[1762514860274,0.00017901,3241.7,3240.9,0.4946]
[1762514860914,0.00017901,3241.7,3240.9,0.1324]
[1762514861576,0.4895,3241.6,3241.2,1.23]
[1762514861870,0.03856239,3241.5,3241.2,1.23]
[1762514862075,1.29827439,3241.5,3241.2,1.23]
[1762514862276,0.4895,3241.4,3241.2,1.23]
[1762514862714,3.08518187,3241.3,3241.2,1.23]
[1762514863018,4.71704696,3241.3,3241.2,0.05339159]
[1762514863317,5.25164696,3241.3,3241.2,0.05339159]
[1762514863512,4.34498905,3241.2,3240.0,1.23]
[1762514863717,0.139,3240.1,3240.0,1.23]
[1762514863922,4.48503649,3240.1,3240.0,1.23]
[1762514864091,1.888212,3240.1,3240.0,1.23]
[1762514864422,1.398712,3240.1,3240.0,1.23]
[1762514864597,4.98213649,3240.1,3240.0,1.23]
[1762514866214,4.98213649,3240.1,3238.7,1.23]
[1762514866215,4.34727529,3238.8,3238.7,1.23]
[1762514866628,4.84437529,3238.8,3238.7,1.23]
[1762514867833,5.21652838,3238.8,3238.7,1.23]
[1762514868184,5.21652838,3238.8,3238.7,0.30140006]
[1762514868382,4.84437529,3238.8,3238.7,1e-08]
[1762514868587,1.259712,3236.8,3236.1,0.9286]
[1762514868835,0.05,3238.1,3235.1,0.357]
[1762514868836,0.0997,3236.2,3235.1,0.357]
[1762514868984,1.259712,3236.8,3235.1,0.357]
[1762514869180,1.259712,3236.6,3235.1,0.357]
[1762514869434,3.08974018,3236.6,3235.1,0.357]
[1762514869644,3.0901153,3236.2,3235.1,0.357]
[1762514869935,0.53572196,3236.5,3235.1,0.357]
[1762514869936,0.4971,3236.5,3235.1,0.357]
[1762514870082,3.32338441,3236.1,3235.1,0.357]
[1762514870283,3.09050847,3235.8,3235.1,0.357]
[1762514870488,0.4971,3236.0,3235.1,0.357]
[1762514870733,1.259712,3235.9,3235.1,0.357]
[1762514870941,1.259712,3235.7,3235.1,0.357]
[1762514871144,3.09109455,3235.1,3233.4,0.1929]
[1762514871432,3.09109455,3235.1,3233.3,1.23]
[1762514871433,4.35080655,3235.1,3233.3,1.23]
[1762514871594,3.09156798,3234.7,3233.3,1.23]
[1762514871796,0.05,3234.9,3233.3,1.23]
[1762514872043,1.259712,3234.7,3233.3,1.23]
[1762514872242,0.4971,3234.8,3233.3,1.23]
[1762514872406,3.09192662,3234.3,3233.3,1.23]
[1762514872613,1.259712,3234.1,3233.3,1.23]
[1762514872950,0.4971,3234.7,3233.3,1.23]
[1762514872951,0.4971,3233.9,3233.3,1.23]
[1762514873132,0.1946,3233.9,3233.3,1.23]
[1762514873326,0.1946,3234.2,3233.3,1.23]
[1762514873648,3.2865626,3234.2,3233.3,1.23]
[1762514873954,7.69865062,3234.1,3233.3,0.7329]
[1762514874129,3.14235836,3233.8,3233.3,0.7329]
[1762514874306,7.71,3234.1,3233.3,0.7329]
[1762514874516,0.0524,3234.0,3233.3,0.7329]
[1762514874920,3.09233476,3233.9,3233.3,0.7329]
[1762514875247,1.312112,3234.0,3233.3,0.7329]
[1762514875452,4.35243173,3233.4,3233.3,0.7329]
[1762514875611,4.40483173,3233.4,3233.3,0.7329]
[1762514875812,4.35243173,3233.4,3233.3,0.7329]
[1762514876016,1.259712,3233.4,3233.3,0.7329]
[1762514876944,1.52901076,3234.4,3233.3,0.7329]
[1762514876945,4.67082382,3234.4,3233.3,0.7329]
[1762514877157,3.09205033,3234.1,3233.3,0.7329]
[1762514877357,0.0524,3234.1,3233.3,1.9629]
[1762514877660,0.1946,3234.2,3233.3,1.9629]
[1762514878251,3.28656173,3234.2,3233.3,1.9629]
[1762514878555,0.1946,3234.2,3233.3,1.9629]
[1762514878758,0.1946,3234.2,3233.3,3.1929]
[1762514879258,1.55902787,3234.9,3233.3,3.6584]
[1762514879469,1.55902787,3234.9,3233.4,0.38184]
[1762514879757,1.55902787,3234.9,3233.3,3.1929]
[1762514879758,1.53373187,3234.7,3233.3,3.1929]
[1762514880060,0.1416,3235.0,3233.3,4.4229]
[1762514880370,0.2171,3235.8,3233.3,4.4229]
[1762514880571,0.05,3236.2,3233.3,4.4229]
[1762514880572,0.05,3235.5,3233.3,4.4229]
[1762514880727,1.259712,3234.5,3233.3,4.4229]
[1762514881052,0.05,3235.0,3233.3,4.4229]
[1762514881253,0.05,3234.6,3233.3,4.4229]
[1762514881457,4.35243173,3233.4,3233.3,5.6529]
[1762514881862,1.259712,3233.4,3233.3,5.6529]
[1762514882035,1.259712,3233.4,3233.3,5.343323]
[1762514882237,4.35243173,3233.4,3233.3,5.343323]
[1762514882567,3.09237555,3233.8,3233.3,5.343323]
[1762514882568,0.2671,3234.9,3233.3,5.808823]
[1762514882858,3.09053485,3235.7,3233.4,0.49327201]
[1762514882859,3.09104735,3235.2,3233.4,0.49327201]
[1762514883020,0.03863868,3235.1,3233.4,0.4655]
[1762514883448,3.09136445,3234.9,3233.4,0.4655]
[1762514883656,0.03864226,3234.8,3233.4,0.4655]
[1762514883865,0.2171,3235.2,3233.4,0.4655]
[1762514884029,4.35150766,3234.4,3233.4,0.4655]
[1762514884363,1.259712,3235.1,3233.3,7.803323]
[1762514884655,1.259712,3235.0,3233.4,0.4655]
[1762514884866,3.09179439,3234.4,3233.4,0.4655]
[1762514885157,0.0328,3233.4,3233.3,7.803323]
[1762514885573,1.476812,3234.9,3233.3,7.803323]
[1762514885753,3.09090347,3235.3,3233.4,1.23]
[1762514885922,1.259712,3235.1,3233.4,1.6955]
[1762514886128,0.05,3235.8,3233.5,0.4655]
[1762514886129,3.09163797,3234.6,3233.5,0.4655]
[1762514886460,1.259712,3234.1,3233.4,1.23]
[1762514886768,1.259712,3235.0,3233.5,0.4655]
[1762514886977,1.259712,3234.5,3233.5,0.4655]
[1762514887195,1.259712,3234.5,3233.4,1.23]
[1762514887196,3.09202441,3234.2,3233.4,2.46]
[1762514887399,0.03864704,3234.4,3233.4,2.46]
[1762514887400,4.35233609,3233.5,3233.4,2.461]
[1762514888668,1.259712,3233.5,3233.4,3.691]
[1762514889304,0.00381847,3233.7,3233.4,4.1565]
[1762514889645,0.00381847,3233.7,3233.5,0.4655]
[1762514890503,0.002,3235.3,3233.6,0.02777796]
[1762514890702,0.002,3235.3,3235.2,0.1929]
[1762514890992,0.002,3235.3,3234.6,0.1929]
[1762514891303,0.002,3235.3,3235.2,0.1929]
[1762514891509,0.002,3235.7,3235.2,0.1929]
[1762514891808,0.002,3236.0,3235.2,0.1929]
[1762514891809,0.002,3236.0,3235.3,0.4655]
[1762514891956,0.3393,3237.5,3235.4,0.02773494]
[1762514891957,0.1144,3237.5,3235.4,0.02773494]
[1762514892148,0.1144,3237.5,3235.2,0.1929]
[1762514892149,0.1164,3237.5,3235.5,0.4655]
[1762514892361,0.03861123,3237.4,3235.5,0.4655]
[1762514892559,0.1164,3237.5,3235.5,0.4655]
[1762514892754,3.0889813,3237.4,3235.5,0.4655]
[1762514892954,0.1164,3237.5,3235.5,0.4655]
[1762514893181,0.2269,3238.4,3235.5,0.4655]
[1762514893361,0.2769,3238.9,3235.5,0.4655]
[1762514893556,0.31549334,3238.9,3235.5,0.4655]
[1762514893760,0.2769,3238.9,3235.6,0.02770567]
[1762514893958,0.2269,3238.8,3235.7,0.02770405]
[1762514894279,0.41074405,3239.1,3236.1,3.257]
[1762514894280,3.08727757,3239.1,3236.1,3.257]
[1762514894480,0.00672047,3239.7,3236.1,3.257]
[1762514894481,3.08707362,3239.4,3237.0,3.08921303]
[1762514894656,3.09346964,3239.7,3237.1,0.02767753]
[1762514894861,3.09346964,3239.7,3236.3,3.7292]
[1762514894862,0.00672047,3239.7,3236.3,3.7292]
[1762514895058,0.3373,3239.5,3235.7,0.4722]
[1762514895359,3.08699141,3239.4,3235.7,0.4722]
[1762514895558,1.309712,3239.1,3235.7,0.4722]
[1762514895801,1.259712,3237.8,3235.7,0.4722]
[1762514895960,1.29831965,3237.7,3235.7,0.4722]
[1762514896166,1.259712,3237.5,3235.7,0.4722]
[1762514896401,3.08872066,3237.6,3235.7,0.4722]
[1762514896547,1.259712,3237.5,3235.7,0.4722]
[1762514896752,1.29832203,3237.5,3235.7,0.4722]
[1762514896997,1.486612,3238.2,3235.7,0.4722]
[1762514897206,1.259712,3237.3,3236.9,1.23]
[1762514897506,3.08918492,3237.1,3236.9,1.23]
[1762514897710,3.08920367,3237.1,3236.9,1.23]
[1762514897858,0.05,3237.9,3236.9,1.23]
[1762514897859,4.34899219,3237.0,3236.9,1.23]
[1762514898384,4.57589219,3237.0,3236.9,1.23]
[1762514898557,3.08928019,3237.0,3236.9,1.23]
[1762514898762,3.31618019,3237.0,3236.9,1.23]
[1762514898958,3.40479619,3237.0,3236.9,1.23]
[1762514899186,3.68833328,3237.0,3236.9,1.8e-07]
[1762514899396,3.31618019,3237.0,3236.9,1.8e-07]
[1762514899689,1.259712,3237.0,3236.9,1.8e-07]
[1762514899992,3.08845596,3237.9,3236.9,1.8e-07]
[1762514900178,0.2269,3238.2,3236.9,1.23000018]
[1762514900488,0.59905309,3238.2,3236.9,1.23000018]
[1762514900688,0.05,3238.7,3236.9,1.23000018]
[1762514900892,3.31464746,3238.7,3237.0,0.4722]
[1762514901187,6.4804,3239.5,3237.1,0.1849]
[1762514901188,0.59905309,3239.3,3237.1,0.1849]
[1762514901386,0.1104,3239.5,3237.1,0.1849]
[1762514901589,3.08699141,3239.4,3237.2,0.4722]
[1762514901787,3.08737454,3239.0,3237.2,0.4722]
[1762514901990,0.3373,3239.5,3237.2,0.4722]
[1762514902221,3.08769295,3238.7,3237.2,0.4722]
[1762514902513,1.259712,3238.7,3237.2,0.4722]
[1762514902710,0.2269,3239.1,3237.2,0.4722]
[1762514902914,3.08774822,3238.7,3237.2,0.4722]
[1762514903093,1.259712,3238.6,3237.2,0.4722]
[1762514903419,0.03859811,3238.5,3237.2,0.4722]
[1762514903619,1.259712,3238.9,3237.2,0.4722]
[1762514903915,1.259712,3239.2,3237.2,0.4722]
[1762514904215,0.48255309,3239.5,3237.2,0.4722]
[1762514904216,0.1104,3239.5,3237.2,0.4722]
[1762514904519,3.08603876,3240.4,3237.3,0.02767353]
[1762514904727,0.2269,3240.2,3237.4,0.02766502]
[1762514904893,3.08603876,3240.4,3237.8,3.08848998]
[1762514905080,0.052,3240.5,3237.1,1.4149]
[1762514905081,0.002,3240.5,3238.1,3.08817137]
[1762514905279,0.002,3240.5,3237.9,3.08841038]
[1762514905483,1.259712,3240.0,3237.6,0.4722]
[1762514905683,0.002,3240.5,3238.1,3.08822305]
[1762514905684,1.259712,3240.2,3238.1,3.08822305]
[1762514905884,3.12490922,3240.1,3237.6,0.4722]
[1762514906118,3.08635797,3240.1,3237.7,3.56072414]
[1762514906301,0.002,3240.5,3237.8,3.08846541]
[1762514906501,0.002,3238.9,3237.8,0.4722]
[1762514906701,0.002,3238.9,3237.9,0.4998684]
[1762514906883,0.002,3238.9,3238.8,0.1849]
[1762514907416,0.002,3238.9,3238.8,0.6571]
[1762514909525,0.002,3238.9,3238.4,0.1849]
[1762514909890,0.002,3238.9,3238.0,0.02766295]
[1762514910088,0.002,3238.9,3237.9,2.46]
[1762514910089,3.08832612,3238.0,3237.9,2.46]
[1762514910317,4.34803812,3238.0,3237.9,2.46]
[1762514910515,1.259712,3238.0,3237.9,2.46]
[1762514910720,4.34803812,3238.0,3237.9,2.46]
[1762514911119,4.57493812,3238.0,3237.9,2.46]
[1762514911320,4.94709121,3238.0,3237.9,2.46]
[1762514911528,4.34803812,3238.0,3237.9,2.46]
[1762514911823,1.259712,3238.0,3237.9,2.46]
[1762514911995,4.34803812,3238.0,3237.9,2.46]
[1762514912191,4.57493812,3238.0,3237.9,2.46]
[1762514912605,4.57493812,3238.0,3237.9,3.69]
[1762514912804,1.259712,3238.0,3237.9,3.69]
[1762514913896,4.34803812,3238.0,3237.9,3.69]
[1762514914096,4.34803812,3238.0,3237.9,4.92]
[1762514914296,1.259712,3238.0,3237.9,4.92]
[1762514914935,0.37415309,3239.3,3237.9,5.3922]
[1762514915126,0.002,3239.3,3238.0,0.4722]
[1762514916394,1.261712,3238.9,3238.0,0.4722]
[1762514916599,0.002,3238.9,3237.9,6.15]
[1762514916791,0.002,3238.9,3238.0,1.7022]
[1762514917301,0.002,3238.9,3238.1,0.49986516]
[1762514917635,0.002,3238.9,3238.1,0.4722]
[1762514918217,0.002,3238.9,3238.1,1.72986439]
[1762514918617,0.002,3238.9,3238.2,0.4722]
[1762514918930,0.002,3238.9,3238.3,3.11567376]
[1762514919236,0.002,3239.3,3238.5,3.08784931]
[1762514919562,0.002,3239.3,3238.2,0.4722]
[1762514919563,0.002,3240.5,3239.2,0.1989]
[1762514919836,0.002,3240.5,3240.4,0.1989]
[1762514920209,0.002,3240.5,3239.2,0.1989]
[1762514920210,3.08796032,3240.5,3239.2,0.1989]
[1762514920540,3.08796032,3240.5,3239.3,0.4676]
[1762514920541,3.08646016,3240.0,3239.3,0.4676]
[1762514920739,0.002,3240.5,3238.8,0.1989]
[1762514920902,0.002,3240.5,3239.1,0.4676]